Workbook

Sheet Recon & Budget Change TEMPLATE
A1: =CONCATENATE(F12," Operating Expense Reconcilation") -> 2017 Operating Expense Reconcilation | C1: Fill out the top portion - middle section is for Reconciliation - bottom chart is for Escrow Adjust
A3: Bill Date: | B3: =TODAY() -> 2018-09-11 | E3: Total Sq Ft: | G3: Enter Total Property SF
A4: DAVITA Facility Number | C4: (if known) | E4: DaVita Sq Ft: | G4: Enter Davita SF
A5: Premises Address: | E5: Prorata Share: | F5: =F4/F3 ->  | G5: Auto Calculates
A6: Premises City, State: | E6: Sales Tax | F6: 0 | G6: Leave blank if n/a
A7: Center Name: | E7: Cap %: | F7: 0 | G7: *See your Lease - Leave blank if n/a
A8: Landlord Name: | E8: Base Year: | G8: *See your Lease - Leave blank if n/a
A9: Landlord Address: | E9: Lease Comm Date: | G9: May be applicable if 1st or 2nd year
A10: Landlord Email Address: | E10: Days Occupied | F10: 365 | G10: enter if less than 365 other leave
A11: Landlord Phone Number: | E11: Occupied/Days Yr | F11: =F10/365 -> 1 | G11: will auto calculate based on 365 days
A12: Service Period: | B12: 2017-01-01 | C12: 2017-12-31 | E12: CAM Year: | F12: 2017
A14: Notes:
A15: Add any notes that would clarify charges or changes etc.
A16: *If you have questions on how to calculate a Cap see "CAP Information" tab or please email leaseadmin@davita.com and someone will respond.
A17: *If you have questions on how to calculate a Base Year see "Base Year Information" tab or please email leaseadmin@davita.com and someone will respond.
A20: EXPENSES | B20: Current Year | C20: Prior Year | D20: will auto populate from above
A21: ACCOUNT NAME | B21: CHARGED TO CAM (Per LL) | C21: Final CAM Per Lease Review | D21: DaVita % | E21: DaVita's Share
A22: CAM Controllable Expenses (controllable/non-controllable breakdown is necessary if you have a cap*)
A23: Add account Name | B23: Add Actual Expense | D23: =Prorata_Share ->  | E23: =B23*D23 -> 
E24: =B24*D24 -> 
A34: Total Controllable - Actual CAM | B34: =SUM(B23:B33) -> 0 | C34: =SUM(C23:C33) -> 0 | E34: =SUM(E23:E33) -> 
A35: Total Controllable - CAP | B35: Add first year then calculate % Across | E35: =B35*Prorata_Share ->  | F35: Add CAP over prior year if applicable or "n/a"
A36: Lessor of Actual or CAP | B36: =IF(F7>0, MIN(B34,B35),B34) -> 0 | C36: =IF(G7>0, MIN(C34,C35),C34) -> 0 | E36: =IF(F7>0, MIN(E34,E35),E34) -> 
A38: CAM Non-controllable Expenses
D39: =$F$5 ->  | E39: =B39*D39 -> 
A47: Total Uncontrollable | B47: =SUM(B39:B46) -> 0 | C47: =SUM(C39:C46) -> 0 | E47: =SUM(E39:E46) -> 
A49: CAM Total | B49: =B36+B47 -> 0 | C49: =C36+C47 -> 0 | E49: =+E47+E36 -> 
A51: Property Taxes | D51: =F5 ->  | E51: =B51*D51 -> 
A52: Insurance | D52: =F5 -> 
A55: Total Operating Expenses | B55: =SUM(B49:B52) -> 0 | C55: =SUM(C49:C52) -> 0 | D55: Total | E55: =SUM(E49:E52) ->  | F55: Will auto calculate when you've entered expenses
C56: Amount Escrows Davita Paid | E56: 0 | F56: Enter Amt Billed to/Paid by Davita (this will be the total of the monthly escrows paid by Tenant throughout the prior year)
C57: Total DUE/CREDIT | E57: =E55-E56 ->  | F57: Will auto calculate when you've entered billed amount
A60: BUDGET FOR THE COMING YEAR
A61: CHANGE TO MONTHLY ESCROWS (if applicable) | C61: Effective Date | D61: 2019-01-01 | E61: Example Jan-Mar = 3
A62: Description | B62: NEW ESCROW | C62: OLD ESCROW | D62: DIFF | E62: # OF ADJ MONTHS | F62: ADJUSTMENT DUE
A63: CAM 2019 Budget | D63: =B63-C63 -> 0 | E63: 0 | F63: =E63*D63 -> 0 | G63: Enter new monthly Escrow, effective date and if billing after effective date enter # of months to adjust
A64: RE Taxes 2019 Budget | D64: =B64-C64 -> 0 | E64: 0 | F64: =E64*D64 -> 0
A65: Insurance 2019 Budget | D65: 0 | E65: 0 | F65: 0
A66: Total | B66: =SUM(B63:B65) -> 0 | C66: =SUM(C63:C65) -> 0 | D66: =SUM(D63:D65) -> 0 | F66: =SUM(F63:F65) -> 0
A68: Notes
A69: Landlord please attach copies of the RE Tax bills, Insurance bills, any Tenant Specific bills and breakdown the expenses by category: i.e. Landscaping, Janitorial, Elevator R&M, Electric R&M, Parking lot etc.

Sheet RE Tax ONLY
A1: =CONCATENATE(F12," RE Tax Expense Reconcilation") -> 2017 RE Tax Expense Reconcilation | C1: Fill out the top portion for either
A3: Bill Date: | B3: =TODAY() -> 2018-09-11 | E3: Total Sq Ft: | G3: Enter Total Property SF
A4: DAVITA Facility Number | C4: (if known) | E4: DaVita Sq Ft: | G4: Enter Davita SF
A5: Premises Address: | E5: Prorata Share: | F5: =F4/F3 ->  | G5: Auto Calculates
A6: Premises City, State: | E6: Sales Tax | F6: 0 | G6: Leave blank if n/a
A7: Center Name: | E7: Cap %: | F7: 0 | G7: *See your Lease - Leave blank if n/a
A8: Landlord Name: | E8: Base Year: | G8: *See your Lease - Leave blank if n/a
A9: Landlord Address: | E9: Lease Comm Date: | G9: May be applicable if 1st or 2nd year
A10: Landlord Email Address: | E10: Days Occupied | F10: 365 | G10: enter if less than 365 other leave
A11: Landlord Phone Number: | E11: Occupied/Days Yr | F11: =F10/365 -> 1 | G11: will auto calculate based on 365 days
A12: Service Period: | B12: 2017-01-01 | C12: 2017-12-31 | E12: CAM Year: | F12: 2017
A14: Notes:
A15: Add any notes that would clarify charges or changes etc.
A16: *If you have questions on how to calculate a Cap or Base year - please email leaseadmin@davita.com and someone will respond.
A19: EXPENSES | B19: Current Year | C19: Prior Year | D19: will auto populate from above
A20: ACCOUNT NAME | B20: CHARGED TO CAM (Per LL) | C20: Final CAM Per Lease Review | D20: DaVita % | E20: DaVita's Share
A22: Property Taxes | B22: 0 | D22: =F5 ->  | E22: =B22*D22 -> 
C23: Amount Escrows Davita Paid | E23: 0 | F23: Enter Amt Billed to/Paid by Davita
C24: Total DUE/CREDIT | E24: =#REF!-E23 ->  | F24: Will auto calculate when you've entered billed amount
A26: BUDGET FOR THE COMING YEAR
A27: CHANGE TO MONTHLY ESCROWS (if applicable) | C27: Effective Date | D27: 2019-01-01 | E27: Example Jan-Mar = 3
A28: Description | B28: NEW ESCROW | C28: OLD ESCROW | D28: DIFF | E28: # OF ADJ MONTHS | F28: ADJUSTMENT DUE
A29: RE Taxes 2019 Budget | D29: =B29-C29 -> 0 | E29: 0 | F29: =E29*D29 -> 0 | G29: Enter new monthly Escrow, effective date and if billing after effective date enter # of months to adjust
A30: Totals | B30: =SUM(B29:B29) -> 0 | C30: =SUM(C29:C29) -> 0 | D30: =SUM(D29:D29) -> 0 | F30: =SUM(F29:F29) -> 0
A32: Notes
A33: Attach copies of the actual RE Tax bills - reminder Tenant is not liable for interest or late fees due to late payment by Landlord.

Sheet CAP Information
B1: Hints on % CAPs
A2: 1) | B2: Check your Lease to see if there is a CAP on Operating Expenses.
A3: 2) | B3: If you have a CAP on "Operating Expenses" - please check how your Lease defines "Operating Expenses". It is common for Operating Expenses to include CAM, Insurance and RE Taxes, but check your specific Lease.
A4: 3) | B4: If you are in the 1st partial year or 1st full calendar year there may be a $/PSF CAP on all Operating Expenses. This will likely be separate from the % CAP applicable thereafter. Check your Lease language.
A5: 4) | B5: If you have a CAP on "Controllable Expenses" there is usually a list of items that are excluded from this % CAP, those are your "Uncontrollable Expenses", usually RE Taxes, Insurance and Utilities, but check your Lease.
A6: 5) | B6: A "non-cumulative" % CAP means that there is a CAP on expenses over the expenses paid in the prior year. It is based off of the lesser of actual or CAP paid in the prior year. EXAMPLE: 3% cap on prior Controllable Expenses, excluding Tax, Insurance and Utilities - assume 2015 is the 1st full calendar year, and in this example our share is 100%. See example calculation below:
B7: EXPENSES | E7: 2018 | F7: 2017 | G7: 2016 | H7: 2015
B8: Controllable Charges
B9: R&M Electrical | E9: 400 | F9: 250 | G9: 100 | H9: 250
B10: R&M Parking Lot Sweeping | E10: 100 | F10: 100 | G10: 50 | H10: 100
B11: Pest Control | E11: 50 | F11: 50 | G11: 100 | H11: 50
B12: R&M HVAC | E12: 75 | F12: 100 | G12: 200 | H12: 200
D13: Actuals | E13: =SUM(E9:E12) -> 625 | F13: 500 | G13: 450 | H13: =SUM(H9:H12) -> 600
D14: 3% CAP | E14: =F15*103% -> 477.405 | F14: =G15*103% -> 463.5 | G14: =H15*103% -> 618 | H14: =H13 -> 600
D15: (< of Actual or CAP) Control Total Allowed | E15: =IF(E14<E13,E14,E13) -> 477.405 | F15: 463.5 | G15: 450 | H15: =IF(H14<H13,H14,H13) -> 600
B16: Uncontrollable
B17: Water & Sewer | E17: 2000 | F17: 1500 | G17: 1000 | H17: 1250
B18: Electricity | E18: 5000 | F18: 4000 | G18: 3000 | H18: 2000
B19: RE Taxes | E19: 10000 | F19: 9000 | G19: 8000 | H19: 7000
B20: Insurance | E20: 500 | F20: 450 | G20: 425 | H20: 400
B21: Uncontrollable TOTAL | E21: =SUM(E17:E20) -> 17500 | F21: =SUM(F17:F20) -> 14950 | G21: 12425 | H21: 10650
B23: TOTAL Opex Allowed | E23: =SUM(E21,E15) -> 17977.405 | F23: =SUM(F21,F15) -> 15413.5 | G23: 12875 | H23: 11250 | I23: Total controllable & Uncontrollable
A25: 6) | B25: A "cumulative" % CAP means that there is a CAP on expenses starting after the 1st full calendar year and increasing % over the cap year to year. It does not change based on the actual expenses. EXAMPLE: 3% cap cumulative cap Controllable Expenses, excluding Tax, Insurance and Utilities - assume 2015 is the 1st full calendar year, and in this example our share is 100%. See example calculation below:
B26: EXPENSES | E26: 2018 | F26: 2017 | G26: 2016 | H26: 2015
B27: Controllable Charges
B28: R&M Electrical | E28: 400 | F28: 250 | G28: 100 | H28: 250
B29: R&M Parking Lot Sweeping | E29: 100 | F29: 100 | G29: 50 | H29: 100
B30: Pest Control | E30: 50 | F30: 50 | G30: 100 | H30: 50
B31: R&M HVAC | E31: 75 | F31: 100 | G31: 200 | H31: 200
D32: Actuals | E32: =SUM(E28:E31) -> 625 | F32: =SUM(F28:F31) -> 500 | G32: =SUM(G28:G31) -> 450 | H32: =SUM(H28:H31) -> 600
D33: 3% CAP | E33: =F33*103% -> 655.6362 | F33: 636.54 | G33: =H33*103% -> 618 | H33: =H32 -> 600
D34: (< of Actual or CAP) Control Total Allowed | E34: =IF(E33<E32,E33,E32) -> 625 | F34: =IF(F33<F32,F33,F32) -> 500 | G34: =IF(G33<G32,G33,G32) -> 450 | H34: =IF(H33<H32,H33,H32) -> 600

Sheet Base Year Information
B1: Hints on Base Years
A2: 1) | B2: Check your Lease to see if there is a Base Year on Operating Expenses. Usually the Language will require Tenant to pay its Proportionate Share of all expenses that "exceed" the Base Year. If not specifically defined in your Lease it usually refers to the first full calendar year of expenses. The Base Year concept includes a specific estimated amount directly into the calculation of the Base Rent so anything below the Base Year is assumed to already be included in Base Rent. Therefore, usually the last full year of expenses prior to the Execution of the Lease is designated as the Base Year if it is an established property.
A3: 2) | B3: If your Lease has a Base Year it will also define what is included under the Base Year. Sometimes only the RE Taxes are included, sometimes all Operating Expenses, or sometimes just CAM expenses. Check your Lease for specific language.
A4: 3) | B4: If the billing is for the designated "Base Year" your billing should be $0 because it is all assumed to be part of the Base Year.
A5: 4) | B5: If the billing is for the 1st partial year, based on a prior year Base year you should prorate both the actual expenses for the partial year and the Base Year proportionately.
A6: 5) | B6: See the example below: Assume the Base Year is 2015. The Base Year includes all "Operating Expenses" defined as CAM, Insurance and RE Taxes and the Prorata Share (PRS) is 100%
B7: EXPENSES | E7: 2018 | F7: 2017 | G7: 2016 | H7: 2015
B8: R&M Electrical | E8: 400 | F8: 250 | G8: 100 | H8: 250
B9: R&M Parking Lot Sweeping | E9: 100 | F9: 100 | G9: 50 | H9: 100
B10: Pest Control | E10: 50 | F10: 50 | G10: 100 | H10: 50
B11: R&M HVAC | E11: 75 | F11: 100 | G11: 200 | H11: 200
B12: Water & Sewer | E12: 2000 | F12: 1500 | G12: 1000 | H12: 1250
B13: Electricity | E13: 5000 | F13: 4000 | G13: 3000 | H13: 2000
B14: RE Taxes | E14: 10000 | F14: 9000 | G14: 8000 | H14: 7000
B15: Insurance | E15: 500 | F15: 450 | G15: 425 | H15: 400
B16: Operating Expense TOTAL | E16: =SUM(E12:E15) -> 17500 | F16: =SUM(F12:F15) -> 14950 | G16: 12425 | H16: 10650
B17: Base Year TOTAL | E17: 10650 | F17: 10650 | G17: 10650 | H17: 10650
B18: TOTAL Billable OpEx | E18: =E16-E17 -> 6850 | F18: 4300 | G18: 1775 | H18: =H16-H17 -> 0
